Cogmind - Beta 10.2 @@@ ROGUE MODE // 2021.05.21 @ 22:50:43 Player: Trantor Result: Destroyed by H-66 Slayer with Heavy Assault Rifle Performance ------------- Evolutions (5) 2500 Regions Visited (13) 2600 Robots Destroyed (123) 615 Value Destroyed (4888) 4888 Prototype IDs (54) 1080 Alien Tech Used (0) 0 Bonus (656) 656 TOTAL SCORE: 12339 Bonus ------- High Alert Combat Kills 41 Follower Combat Kills 36 Aligned with FarCom 300 Met Data Miner 300 Friendly Fire -21 Cogmind --------- Core Integrity 0/1000 Matter 246/300 Energy 100/100 System Corruption 18% Temperature Cool (101) Movement Core (1600) Ox31 Location -5/Factory Parts ------- > --- POWER (2) -------- (None) > --- PROPULSION (4) --- (None) > --- UTILITY (7) ------ High-capacity Storage Unit High-capacity Storage Unit High-capacity Storage Unit > --- WEAPON (4) ------- (None) > --- INVENTORY (28) --- Enhanced Nuclear Core Advanced Cooling System High-capacity Matter Pod (200) Long-range Terrain Scanner Energy Filter Improved Weapon Cycler Improved Transmission Jammer Cloak of Protection Thermal Shield Improved Shield Generator Tesla Rifle Proton Cannon Proton Cannon Proton Cannon Compact Ion Cannon Heavy Phase Cannon Enhanced Gauss Cannon Hypervelocity Gauss Cannon Proton Missile Launcher Missile Launcher Guided Missile Launcher Improved Remote Datajack Peak State ------------ > --- POWER ------------ Fission Core Fission Core > --- PROPULSION ------- Light Treads Light Treads Medium Treads Improved Medium Treads > --- UTILITY ---------- Improved Heat Sink High-capacity Storage Unit High-capacity Storage Unit High-capacity Storage Unit Long-range Terrain Scanner Improved Weapon Cycler Cloak of Protection > --- WEAPON ----------- Proton Cannon Proton Cannon Phase Cannon Compact Ion Cannon > --- INVENTORY -------- Enhanced Nuclear Core Light Treads Energy Well High-capacity Matter Pod Experimental Sensor Array Energy Filter Particle Charger Improved Transmission Jammer Hardened Medium Armor Plating Hardened Medium Armor Plating Hardened Medium Armor Plating Hardened Medium Armor Plating Focal Shield Improved Shield Generator Plasma Rifle Force Rifle Force Rifle Proton Cannon Cooled Plasma Cannon Compact Ion Cannon Enhanced Autogun Mini Assault Cannon Proton Missile Launcher Missile Launcher Guided Missile Launcher Improved Remote Datajack Power Sword [Rating: 78] Favorites ----------- Power Heavy Ion Engine Engine Heavy Ion Engine Power Core Fission Core Propulsion Light Treads Treads Light Treads Leg Aluminum Leg Wheel Armored Huge Wheel Utility High-capacity Storage Unit Device Improved Heat Sink Storage High-capacity Storage Unit Processor Terrain Scan Processor Protection Hardened Medium Armor Plating Weapon Beam Rifle Energy Gun Beam Rifle Energy Cannon Heavy Ion Cannon Ballistic Gun Enhanced Autogun Ballistic Cannon Assault Cannon Launcher Missile Launcher Impact Weapon Maul Slashing Weapon Great Axe Build | -11 -10 -10 -10 -9 -8 -8 -7 -7 -7 -7 -6 -6 -5 ------- Run | Scr Mat Min Exi Min Mat Sto Fac Low Low Dat Pro Fac Fac Slots Evolved 10 | . . . . . 4 . 2 . . . . 2 2 Power 1 | . . . . . . . . . . . . . 1 Propulsion 2 | . . . . . 1 . 1 . . . . . . Utility 5 | . . . . . 2 . 1 . . . . 1 1 Weapon 2 | . . . . . 1 . . . . . . 1 . Parts Attached 268 | . 14 1 2 . 35 49 52 3 12 . 11 42 47 Power 18 | . 2 . . . 2 3 4 . . . 1 4 2 Engine 10 | . 2 . . . 2 2 2 . . . 1 1 . Core 8 | . . . . . . 1 2 . . . . 3 2 Reactor . | . . . . . . . . . . . . . . Propulsion 38 | . 3 1 . . 9 3 12 . . . 2 6 2 Treads 32 | . 3 1 . . 9 3 10 . . . . 4 2 Leg . | . . . . . . . . . . . . . . Wheel 6 | . . . . . . . 2 . . . 2 2 . Hover . | . . . . . . . . . . . . . . Flight . | . . . . . . . . . . . . . . Utility 99 | . 5 . 2 . 9 12 14 1 4 . 2 23 27 Device 52 | . . . . . 6 3 7 1 3 . . 14 18 Storage 11 | . 5 . 2 . . 2 1 . . . . . 1 Processor 2 | . . . . . 1 . . . . . . . 1 Hackware . | . . . . . . . . . . . . . . Protection 34 | . . . . . 2 7 6 . 1 . 2 9 7 Artifact . | . . . . . . . . . . . . . . Weapon 113 | . 4 . . . 15 31 22 2 8 . 6 9 16 Energy Gun 36 | . 3 . . . 9 19 2 . . . 1 . 2 Energy Cannon 39 | . . . . . 2 4 10 . 4 . 3 8 8 Ballistic Gun 6 | . 1 . . . . 3 . 1 . . . 1 . Ballistic Cannon 2 | . . . . . . . 2 . . . . . . Launcher 9 | . . . . . . 1 1 1 3 . 1 . 2 Special Weapon . | . . . . . . . . . . . . . . Impact Weapon 13 | . . . . . 4 4 5 . . . . . . Slashing Weapon 8 | . . . . . . . 2 . 1 . 1 . 4 Piercing Weapon . | . . . . . . . . . . . . . . Special Melee Weapon . | . . . . . . . . . . . . . . Unidentified Prototypes 12 | . . . . . 1 9 2 . . . . . . Parts Lost 39 | . 4 . . . . 2 3 . . . 11 1 18 Power 3 | . . . . . . . . . . . 1 . 2 Propulsion 9 | . 1 . . . . . . . . . 2 1 5 Utility 10 | . . . . . . 1 . . . . 2 . 7 Weapon 17 | . 3 . . . . 1 3 . . . 6 . 4 Highest Loss Streak 17 | . 2 . . . . 1 2 . . . 6 1 17 Average Slot Usage (%) 94 | . 93 100 100 100 100 99 94 84 83 84 73 94 96 Engine 6 | . 13 14 14 14 9 7 2 7 7 7 7 . . Core 2 | . . . . . . 1 4 . . . . 5 10 Treads 19 | . 22 28 28 28 27 26 21 . . . . 12 21 Wheel 4 | . . . . . . . 4 15 15 15 14 8 . Device 8 | . . . . . 8 4 8 15 14 15 7 18 19 Storage 22 | . 27 28 28 28 18 22 23 23 23 23 23 20 17 Protection 2 | . . . . . 1 7 5 . . . 3 1 2 Energy Gun 13 | . 24 28 28 28 20 13 13 7 7 7 1 . 6 Energy Cannon 8 | . . . . . 3 10 6 13 9 15 11 25 12 Naked Turns . | . . . . . . . . . . . . . . Heaviest Build 157 | 10 59 59 75 75 92 127 131 122 129 122 129 147 157 Greatest Support 98 | 20 40 40 40 40 67 67 89 56 56 56 56 98 98 Greatest Overweight (x) 43 | . 2 1 1 1 1 2 4 2 2 2 4 6 43 Average Overweight (x) 1 | . 1 1 1 1 1 1 1 2 2 2 1 2 1 Largest Inventory Capacity 28 | . 18 18 20 20 20 28 28 28 28 28 28 28 28 Average Capacity 24 | . 16 18 18 20 20 23 28 28 28 28 28 28 28 Most Carried 28 | . 18 18 19 20 20 28 28 28 28 28 28 28 28 Average Carried 23 | . 14 17 18 19 19 23 27 27 28 28 22 26 27 Final Capacity 28 | 6 18 18 20 20 20 28 28 28 28 28 28 28 28 Final Carried 28 | 6 18 18 19 20 20 28 28 28 28 28 21 28 27 Class Distribution -------------------- 51% | Hauler-Skirmisher 23% | Hauler-Mutant 16% | Mutant 6% | Hauler-Assassin Dominant Class ---------------- Mutant | -10/Materials Mutant | -10/Mines Mutant | -10/Exiles Hauler-Mutant | -9/Mines Hauler-Skirmisher | -8/Materials Hauler-Skirmisher | -8/Storage Hauler-Skirmisher | -7/Factory Hauler-Skirmisher | -7/Lower Caves Hauler-Mutant | -7/Lower Caves Hauler-Skirmisher | -7/Data Miner Hauler-Mutant | -6/Proximity Caves Hauler-Skirmisher | -6/Factory Hauler-Skirmisher | -5/Factory Resources | -11 -10 -10 -10 -9 -8 -8 -7 -7 -7 -7 -6 -6 -5 ----------- Run | Scr Mat Min Exi Min Mat Sto Fac Low Low Dat Pro Fac Fac Matter Collected 3625 | 200 445 . . 26 383 616 663 110 205 . 99 375 503 Remotely . | . . . . . . . . . . . . . . Salvage Created 5578 | . 444 140 . . 613 1281 1111 332 208 . 172 715 562 Parts 269 | . 28 8 . . 32 62 49 16 12 . 7 36 19 Haulers Intercepted 11 | . 1 . . . 1 6 2 . . . . 1 . Recyclers Shooed . | . . . . . . . . . . . . . . Parts Field Recycled . | . . . . . . . . . . . . . . Retrieved Matter . | . . . . . . . . . . . . . . Parts Self-Destructed 35 | . . . . . . . . 21 5 . 9 . . Prevented 3 | . . . . . . . . 3 . . . . . Kills | -11 -10 -10 -10 -9 -8 -8 -7 -7 -7 -7 -6 -6 -5 ------- Run | Scr Mat Min Exi Min Mat Sto Fac Low Low Dat Pro Fac Fac Combat Hostiles Destroyed 90 | . 9 5 . . 7 17 19 6 7 . 4 7 9 Guns 49 | . 9 5 . . 6 15 9 1 . . 2 . 2 Cannons 28 | . . . . . 1 2 8 3 1 . 1 7 5 AOE 10 | . . . . . . . . 2 6 . 1 . 1 Classes Destroyed 14 | . 5 . . . 2 2 2 . 2 . 1 . . Worker 2 | . . . . . . 1 . . . . . . 1 Builder 2 | . . . . . . 1 1 . . . . . . Hauler 11 | . 1 . . . 1 6 2 . . . . 1 . Recycler 3 | . 1 . . . 1 . . . . . . 1 . Operator 2 | . . . . . . . 1 . . . . 1 . Watcher 13 | . 2 . . . 4 2 2 . . . . 2 1 Swarmer 17 | . 3 3 . . . . 4 . 6 . 1 . . Grunt 18 | . 6 2 . . . 5 2 . . . 1 1 1 Duelist 2 | . . . . . . . . . . . 2 . . Sentry 24 | . . . . . 3 11 6 1 . . . 2 1 Hunter 12 | . . . . . 4 1 2 3 . . . 1 1 Programmer 16 | . . . . . . . 5 2 . . . 3 6 Samaritan 2 | . . . . . . . . . 2 . . . . Mutant 1 | . . . . . . . . . 1 . . . . Best Kill Streak 4 | . 3 3 . . 2 4 4 3 4 . 3 2 2 Combat Bots Only 4 | . 3 3 . . 1 2 4 3 4 . 3 1 2 Max Kills in Single Turn 3 | . 1 2 . . 1 1 1 2 3 . 1 1 2 Gunslinging 1 | . . 1 . . . . . . . . . . . Exploded 3 | . . . . . . . . 2 3 . 1 . 1 Melee . | . . . . . . . . . . . . . . Uniques/NPCs Destroyed . | . . . . . . . . . . . . . . Combat | -11 -10 -10 -10 -9 -8 -8 -7 -7 -7 -7 -6 -6 -5 -------- Run | Scr Mat Min Exi Min Mat Sto Fac Low Low Dat Pro Fac Fac Damage Taken 11086 | . 498 133 . . 374 1200 1286 403 176 . 2339 547 4130 Core 1725 | . 44 11 . . 21 111 64 41 17 . 345 62 1009 Absorbed by Shields 86 | . . . . . . . . . . . . . 86 Core Remaining (%) 75 | 100 . . . 78 . 76 . . . . 33 92 . Volleys Fired 315 | . 57 8 . . 29 65 54 14 9 . 15 38 26 Largest 4 | . 2 2 . . 3 3 3 3 3 . 3 4 4 Hottest 340 | . 112 112 . . 187 186 206 191 191 . 230 324 340 Shots Fired 794 | . 88 16 . . 86 180 162 36 14 . 32 96 84 Gun 470 | . 88 16 . . 79 125 91 16 3 . 8 2 42 Cannon 311 | . . . . . 7 55 71 17 5 . 21 94 41 Launcher 13 | . . . . . . . . 3 6 . 3 . 1 Special . | . . . . . . . . . . . . . . Kinetic 27 | . 18 . . . . 2 . 5 . . . 2 . Thermal 720 | . 70 16 . . 86 178 162 28 8 . 28 61 83 Explosive 9 | . . . . . . . . . 6 . 3 . . Electromagnetic 38 | . . . . . . . . 3 . . 1 33 1 Robot Hit Streak 20 | . 8 10 . . 20 13 19 6 11 . 12 19 19 Robot Miss Streak 5 | . 5 1 . . 3 2 2 4 1 . 1 2 5 Penetration Max . | . . . . . . . . . . . . . . Secondary Targets 1 | . . 1 . . . . . . . . . . . Max Gunslinging Chain 1 | . . 1 . . . . . . . . . . . Shots Hit Robots 505 | . 54 12 . . 60 102 115 19 7 . 19 59 58 Core Hits 209 | . 22 6 . . 25 42 44 11 14 . 13 18 14 Critical Hits 7 | . . . . . . . . . . . 1 1 5 Critical Kills 1 | . . . . . . . . . . . . . 1 Critical Parts Destroyed 6 | . . . . . . . . . . . 1 1 4 Melee Attacks 71 | . . . . . 12 4 44 . 1 . . . 10 Impact 55 | . . . . . 12 4 39 . . . . . . Slashing 16 | . . . . . . . 5 . 1 . . . 10 Piercing . | . . . . . . . . . . . . . . Sneak Attacks 3 | . . . . . . . 2 . 1 . . . . Combat Hostiles . | . . . . . . . . . . . . . . Follow-up Attacks . | . . . . . . . . . . . . . . Damage Inflicted 12561 | . 687 188 . . 946 2065 2743 675 676 . 809 1510 2262 Guns 5758 | . 687 188 . . 821 1509 1342 226 40 . 143 17 785 Cannons 5109 | . . . . . 125 549 1199 274 84 . 349 1493 1036 Explosions 1366 | . . . . . . . . 175 448 . 317 . 426 Melee 306 | . . . . . . . 202 . 104 . . . . Ramming 22 | . . . . . . 7 . . . . . . 15 Kinetic 159 | . 76 . . . . . . 66 . . . 17 . Thermal 10488 | . 611 188 . . 946 2058 2541 434 124 . 492 874 2220 Explosive 765 | . . . . . . . . . 448 . 317 . . Electromagnetic 821 | . . . . . . . . 175 . . . 619 27 Impact 202 | . . . . . . . 202 . . . . . . Slashing 104 | . . . . . . . . . 104 . . . . Piercing . | . . . . . . . . . . . . . . Highest Corruption 18 | . . . . . 4 6 5 4 4 . . 7 18 Average Corruption 4 | . . . . . 3 4 3 3 1 . . 2 8 Corruption Purged 6 | . . . . . . . 2 . 4 . . . . Effects 282 | . . . . . 22 79 67 24 8 . . 23 59 Message Errors 66 | . . . . . 10 14 17 4 4 . . 5 12 Matter Fused 56 | . . . . . 4 19 14 5 1 . . 2 11 Heat Flow Errors 28 | . . . . . . 9 6 3 2 . . 2 6 Energy Discharges 41 | . . . . . 6 13 9 6 1 . . 5 1 Parts Rejected 2 | . . . . . 1 . . . . . . . 1 Data Loss (minor) 37 | . . . . . 1 10 8 4 . . . 5 9 Data Loss (major) 7 | . . . . . . 1 3 . . . . . 3 Misfires 10 | . . . . . . 4 2 . . . . 1 3 Misdirections 1 | . . . . . . . . . . . . . 1 Targeting Errors 30 | . . . . . . 8 7 2 . . . 2 11 Weapon Failures 4 | . . . . . . 1 1 . . . . 1 1 Overload Shots 4 | . . . . . . 4 . . . . . . . Overflow Damage 566 | . . . . . . 9 257 3 . . 20 45 232 Projectiles 180 | . . . . . . 9 44 3 . . 20 45 59 Explosions 236 | . . . . . . . 63 . . . . . 173 Melee 150 | . . . . . . . 150 . . . . . . Knockbacks 1 | . . . . . . . . . . . . . 1 Impact 1 | . . . . . . . . . . . . . 1 Kinetic . | . . . . . . . . . . . . . . Secondary . | . . . . . . . . . . . . . . Self-Inflicted Damage 317 | . . . . . . 87 188 . 30 . . . 12 Shots 7 | . . . . . . 2 2 . 2 . . . 1 Rammed 1 | . . . . . . . . . . . . . 1 Targets Rammed 2 | . . . . . . 1 . . . . . . 1 Kicked . | . . . . . . . . . . . . . . Crushed 1 | . . . . . . 1 . . . . . . . Highest Temperature 480 | . 306 366 . . 439 444 480 212 156 . 242 438 475 Average Temperature 138 | . 114 157 . . 117 153 130 82 67 . 85 153 186 Received Heat Transfer 1599 | . 150 66 . . 36 396 96 18 . . 282 18 537 Effects 39 | . 1 2 . . 2 14 4 . . . . 4 12 Shutdowns 9 | . . . . . . 2 2 . . . . 1 4 Energy Bleed 9 | . . 1 . . 2 3 . . . . . 3 . Interference 12 | . 1 . . . . 6 . . . . . . 5 Matter Decay 3 | . . . . . . . 1 . . . . . 2 Short Circuit 3 | . . . . . . 1 1 . . . . . 1 Damage (minor) 3 | . . 1 . . . 2 . . . . . . . Siege Activations . | . . . . . . . . . . . . . . Robots Corrupted 1 | . . . . . . . . . . . . 1 . Combat Hostiles . | . . . . . . . . . . . . . . Parts Fried 4 | . . . . . . . 2 . . . . 2 . Impact Corruptions 3 | . . . . . . . 3 . . . . . . Robots Melted 3 | . . . . . . . 2 . . . . . 1 Combat Hostiles 3 | . . . . . . . 2 . . . . . 1 Parts Melted 50 | . 3 . . . 3 5 21 1 . . . 5 12 Heat Transferred 17799 | . 1703 444 . . 2257 3891 4484 592 185 . 740 962 2541 Parts Sabotaged . | . . . . . . . . . . . . . . Parts Stolen . | . . . . . . . . . . . . . . Parts Stripped . | . . . . . . . . . . . . . . Power Chain Reactions . | . . . . . . . . . . . . . . Missiles Intercepted . | . . . . . . . . . . . . . . Alert | -11 -10 -10 -10 -9 -8 -8 -7 -7 -7 -7 -6 -6 -5 ------- Run | Scr Mat Min Exi Min Mat Sto Fac Low Low Dat Pro Fac Fac Peak Influence 650 | . 124 70 . 5 118 256 650 . . . . 161 308 Initial 89 | . . . . . . 16 89 . . . . 79 16 Average 85 | . 30 33 . . 36 91 194 . . . . 38 77 Maximum Alert Level 2 | . . . . . . 1 2 . . . . . 1 Low Security (%) 91 | . 100 100 . 100 100 99 65 . . . . 100 95 Level 1 4 | . . . . . . . 16 . . . . . 4 Level 2 4 | . . . . . . . 18 . . . . . . Level 3 . | . . . . . . . . . . . . . . Level 4 . | . . . . . . . . . . . . . . Level 5 . | . . . . . . . . . . . . . . High Security . | . . . . . . . . . . . . . . Max Security . | . . . . . . . . . . . . . . Squads Dispatched 26 | . 1 . . . 4 1 8 . . . 1 6 5 Investigation 7 | . 1 . . . 3 . 2 . . . . . 1 Extermination 12 | . . . . . . . 5 . . . . 4 3 Reinforcement 5 | . . . . . 1 1 1 . . . . 1 1 Assault 1 | . . . . . . . . . . . 1 . . Garrison 1 | . . . . . . . . . . . . 1 . Intercept . | . . . . . . . . . . . . . . Construction Impeded 1 | . . . . . . . . . . . . . 1 Haulers Reinforced . | . . . . . . . . . . . . . . Stealth | -11 -10 -10 -10 -9 -8 -8 -7 -7 -7 -7 -6 -6 -5 --------- Run | Scr Mat Min Exi Min Mat Sto Fac Low Low Dat Pro Fac Fac Distress Signals 4 | . 1 . . . 1 . 2 . . . . . . Communications Jammed 5 | . . . . . . . . . . . . . 5 Distress Signals 5 | . . . . . . . . . . . . . 5 Times Spotted 159 | . 16 5 . . 12 29 32 6 9 . 17 11 22 Peak Tracking Total 12 | . 6 3 . . 4 4 4 3 4 . 12 2 7 Tactical Retreats 15 | . 1 . . . 1 2 3 . 1 . 6 . 1 Traps | -11 -10 -10 -10 -9 -8 -8 -7 -7 -7 -7 -6 -6 -5 ------- Run | Scr Mat Min Exi Min Mat Sto Fac Low Low Dat Pro Fac Fac Traps Triggered 15 | . . . . . 4 7 3 . . . . 1 . Indirectly . | . . . . . . . . . . . . . . Trap Hack Attempts . | . . . . . . . . . . . . . . Triggered . | . . . . . . . . . . . . . . Disarmed . | . . . . . . . . . . . . . . Reprogrammed . | . . . . . . . . . . . . . . Reused . | . . . . . . . . . . . . . . Traps Extracted . | . . . . . . . . . . . . . . Installed . | . . . . . . . . . . . . . . Triggered . | . . . . . . . . . . . . . . Machines | -11 -10 -10 -10 -9 -8 -8 -7 -7 -7 -7 -6 -6 -5 ---------- Run | Scr Mat Min Exi Min Mat Sto Fac Low Low Dat Pro Fac Fac Machines Disabled 30 | . . . . . . 11 9 . 1 . . . 9 Max in Single Turn 5 | . . . . . . 1 5 . 1 . . . 5 Garrison Access 8 | . . . . . 1 1 3 . . . . 2 1 Machines Sabotaged . | . . . . . . . . . . . . . . Garrisons Compromised . | . . . . . . . . . . . . . . Overloaded Fab Kills . | . . . . . . . . . . . . . . Fab Network Shutdowns . | . . . . . . . . . . . . . . Hacking | -11 -10 -10 -10 -9 -8 -8 -7 -7 -7 -7 -6 -6 -5 --------- Run | Scr Mat Min Exi Min Mat Sto Fac Low Low Dat Pro Fac Fac Machines Accessed 78 | . 11 1 5 1 8 17 18 . . 4 . 8 5 Terminals 42 | . 8 . . 1 4 13 9 . . . . 4 3 Fabricators 2 | . . . . . . . 2 . . . . . . Repair Stations 9 | . 1 . . . . 2 4 . . . . 1 1 Recycling Units 5 | . 2 . . . 1 1 . . . . . 1 . Scanalyzers 2 | . . . . . 2 . . . . . . . . Garrison Access 8 | . . . . . 1 1 3 . . . . 2 1 Total Hacks 271 | . 37 1 50 3 28 47 52 . . 27 . 16 10 Successful 189 | . 20 1 50 2 18 31 26 . . 27 . 9 5 Failed 81 | . 16 . . 1 10 16 26 . . . . 7 5 Catastrophic 11 | . 3 . . . . 1 4 . . . . 2 1 Database Lockouts 1 | . 1 . . . . . . . . . . . . Manual 102 | . 28 . 1 1 13 22 23 . . 2 . 9 3 Terminals 128 | . 31 . . 3 16 35 31 . . . . 9 3 Fabricators 5 | . . . . . . . 5 . . . . . . Repair Stations 28 | . 2 . . . . 8 10 . . . . 2 6 Recycling Units 9 | . 4 . . . 2 2 . . . . . 1 . Scanalyzers 9 | . . . . . 9 . . . . . . . . Garrison Access 14 | . . . . . 1 2 6 . . . . 4 1 Terminal Hacks 112 | . 12 1 50 2 1 13 6 . . 27 . . . Record 62 | . 1 . 49 1 . . . . . 11 . . . Part Schematic 11 | . . . . . . . 2 . . 9 . . . Robot Schematic 4 | . . . . . . . . . . 4 . . . Robot Analysis 4 | . 4 . . . . . . . . . . . . Prototype ID Bank 6 | . 1 . . . . 1 1 . . 3 . . . Open Door 7 | . . 1 . . . 6 . . . . . . . Branch Access Points 2 | . . . . . . 1 1 . . . . . . Terminal Index 1 | . . . . . . . 1 . . . . . . Unreport Threat 7 | . 3 . . . 1 3 . . . . . . . Locate Traps 1 | . 1 . . . . . . . . . . . . Recall Investigation 1 | . . . . . . 1 . . . . . . . Recall Reinforcements 1 | . . . . . . 1 . . . . . . . Hauler Manifests 2 | . 2 . . . . . . . . . . . . Zone Layout 2 | . . . . 1 . . 1 . . . . . . EX-Prototype ID Bank 1 | . . . 1 . . . . . . . . . . Fabricator Hacks 3 | . . . . . . . 3 . . . . . . Load Schematic 1 | . . . . . . . 1 . . . . . . Build 2 | . . . . . . . 2 . . . . . . Repair Station Hacks 21 | . 2 . . . . 6 8 . . . . 1 4 Scan Component 12 | . 1 . . . . 3 5 . . . . 1 2 Repair 9 | . 1 . . . . 3 3 . . . . . 2 Recycling Unit Hacks 6 | . 2 . . . 2 1 . . . . . 1 . Report Inventory 3 | . 1 . . . 1 . . . . . . 1 . Retrieve Components 3 | . 1 . . . 1 1 . . . . . . . Scanalyzer 8 | . . . . . 8 . . . . . . . . Insert Component 4 | . . . . . 4 . . . . . . . . Analyze 4 | . . . . . 4 . . . . . . . . Garrison Access Hacks 8 | . . . . . 1 1 3 . . . . 2 1 Seal Access 8 | . . . . . 1 1 3 . . . . 2 1 Unauthorized Hacks 31 | . 4 . . . 6 10 6 . . . . 5 . Terminals 31 | . 4 . . . 6 10 6 . . . . 5 . Track 7 | . . . . . 1 3 2 . . . . 1 . Assimilate 4 | . . . . . 1 1 1 . . . . 1 . Botnet 20 | . 4 . . . 4 6 3 . . . . 3 . Fabricators . | . . . . . . . . . . . . . . Repair Stations . | . . . . . . . . . . . . . . Recycling Units . | . . . . . . . . . . . . . . Scanalyzers . | . . . . . . . . . . . . . . Garrison Access . | . . . . . . . . . . . . . . Data Cores Recovered 2 | . . . . . . . 1 . . . . 1 . Used 1 | . . . . . . . . . . . . 1 . Hacking Detections 52 | . 11 . . 1 6 10 14 . . . . 6 4 Full Trace Events 5 | . 1 . . . 1 . 2 . . . . . 1 Feedback Events . | . . . . . . . . . . . . . . Feedback Blocked . | . . . . . . . . . . . . . . Robot Schematics Acquired 4 | . . . . . . . . . . 4 . . . Robots Built . | . . . . . . . . . . . . . . Matter . | . . . . . . . . . . . . . . Time . | . . . . . . . . . . . . . . Total Robot Build Rating . | . . . . . . . . . . . . . . Part Schematics Acquired 14 | . . . . . 3 . 2 . . 9 . . . Parts Built 4 | . . . . . . . 4 . . . . . . Matter 292 | . . . . . . . 292 . . . . . . Time 146 | . . . . . . . 146 . . . . . . Total Part Build Rating 12 | . . . . . . . 12 . . . . . . Parts Repaired 8 | . 1 . . . . 3 3 . . . . . 1 Time 390 | . 26 . . . . 109 95 . . . . . 160 Parts Recycled . | . . . . . . . . . . . . . . Recycled Matter . | . . . . . . . . . . . . . . Retrieved Matter . | . . . . . . . . . . . . . . Retrieved Components 24 | . 6 . . . 9 9 . . . . . . . Parts Scanalyzed 3 | . . . . . 3 . . . . . . . . Part Schematics Acquired 3 | . . . . . 3 . . . . . . . . Parts Damaged . | . . . . . . . . . . . . . . Bothacking | -11 -10 -10 -10 -9 -8 -8 -7 -7 -7 -7 -6 -6 -5 ------------ Run | Scr Mat Min Exi Min Mat Sto Fac Low Low Dat Pro Fac Fac Used RIF Installer . | . . . . . . . . . . . . . . Robots Hacked . | . . . . . . . . . . . . . . Non-combat . | . . . . . . . . . . . . . . Combat . | . . . . . . . . . . . . . . Robot Hacks Applied . | . . . . . . . . . . . . . . Relay Couplers Released . | . . . . . . . . . . . . . . Robots Rewired 2 | . . . . . . . . . . . 2 . . Allies Hacked . | . . . . . . . . . . . . . . Hacks Repelled . | . . . . . . . . . . . . . . Allies | -11 -10 -10 -10 -9 -8 -8 -7 -7 -7 -7 -6 -6 -5 -------- Run | Scr Mat Min Exi Min Mat Sto Fac Low Low Dat Pro Fac Fac Total Allies 11 | . . 2 . . 1 1 4 . . . 3 . . Largest Group 3 | . . 2 . . 1 1 3 . . . 1 . . Highest-Rated Group 94 | . . 38 . . 10 10 93 . . . 94 . . Highest-Rated Ally 94 | . . 31 . . 10 10 31 . . . 94 . . Total Orders 3 | . . . . . 1 2 . . . . . . . STAY 2 | . . . . . 1 1 . . . . . . . FOLLOW 1 | . . . . . . 1 . . . . . . . Ally Attacks 36 | . . . . . . . 21 . . . 15 . . Total Damage 619 | . . . . . . . 296 . . . 323 . . Kills 3 | . . . . . . . 2 . . . 1 . . Allies Corrupted . | . . . . . . . . . . . . . . Allies Melted . | . . . . . . . . . . . . . . Intel | -11 -10 -10 -10 -9 -8 -8 -7 -7 -7 -7 -6 -6 -5 ------- Run | Scr Mat Min Exi Min Mat Sto Fac Low Low Dat Pro Fac Fac Robot Analysis Total 4 | . 4 . . . . . . . . . . . . Derelict Logs Recovered 5 | . . 1 . 2 . . . 1 . . 1 . . Drone Launches . | . . . . . . . . . . . . . . Drone Recoveries . | . . . . . . . . . . . . . . Exploration | -11 -10 -10 -10 -9 -8 -8 -7 -7 -7 -7 -6 -6 -5 ------------- Run | Scr Mat Min Exi Min Mat Sto Fac Low Low Dat Pro Fac Fac Turns Passed 22290 | . 2000 1260 935 1014 1814 2878 4295 1210 1775 136 347 2446 2180 Spaces Moved 10727 | 1 971 662 518 561 737 1153 1974 961 805 114 240 1067 963 Core 5 | . . . . . . . . . . . . . 5 Treads 7163 | . 863 662 518 561 737 1153 1307 . . . . 404 958 Legs 109 | 1 108 . . . . . . . . . . . . Wheels 3450 | . . . . . . . 667 961 805 114 240 663 . Hover . | . . . . . . . . . . . . . . Flight . | . . . . . . . . . . . . . . Fastest Speed 110 | 120 120 180 180 180 165 170 120 120 120 120 110 120 180 Average Speed 159 | 120 177 180 180 180 174 170 153 120 120 120 116 154 188 Slowest Speed 2200 | 120 200 180 180 180 180 185 192 120 120 120 140 280 2200 Overloaded Moves . | . . . . . . . . . . . . . . Propulsion Burnouts . | . . . . . . . . . . . . . . Robots Hopped . | . . . . . . . . . . . . . . Cave-ins Triggered . | . . . . . . . . . . . . . . Exploration Rate (%) 65 | 2 99 99 91 84 51 95 44 89 82 75 66 24 22 Regions Visited 13 Branch Regions 8 Pre-discovered Areas 4 | . . 1 1 1 . . . . . 1 . . . Known Exits Taken 4 | . . . . . 1 1 1 . . . . 1 . Unknown Exits Taken 9 | 1 1 1 1 1 . . . 1 1 1 1 . . Scrap Searched 16 | . . 1 . 1 . . . 9 3 . 2 . . Spaces Dug 80 | . . . . . 12 5 39 . 7 . 1 6 10 Terrain Destroyed 349 | . . . . . 13 51 101 3 61 . 18 23 79 Melee 62 | . . . . . 12 1 39 . . . . . 10 Projectile 70 | . . . . . 1 25 6 3 . . 4 23 8 AOE 217 | . . . . . . 25 56 . 61 . 14 . 61 Terrain Rammed . | . . . . . . . . . . . . . . Walls Destroyed . | . . . . . . . . . . . . . . Machines Disabled . | . . . . . . . . . . . . . . Actions | -11 -10 -10 -10 -9 -8 -8 -7 -7 -7 -7 -6 -6 -5 --------- Run | Scr Mat Min Exi Min Mat Sto Fac Low Low Dat Pro Fac Fac Total 15198 | . 1164 718 521 566 1186 1937 3067 991 1594 113 279 1796 1266 Wait 3483 | . 85 37 . 3 329 598 877 10 764 . . 597 183 Move 10714 | . 970 661 517 560 736 1152 1973 960 804 113 239 1066 963 Hop . | . . . . . . . . . . . . . . Pick Up 138 | . 23 5 1 2 18 21 22 2 1 . 3 27 13 Fast Attach 62 | . 5 . . . 3 21 19 . 2 . . 6 6 Attach 45 | . 3 . . . 4 3 7 . . . 8 9 11 Detach 15 | . 1 . . . . 3 2 . . . . 2 7 Swap 161 | . 6 1 2 . 28 25 26 3 10 . 3 27 30 Drop 177 | . 14 6 1 1 27 40 43 2 3 . . 24 16 Fire 315 | . 57 8 . . 29 65 54 14 9 . 15 38 26 Melee 71 | . . . . . 12 4 44 . 1 . . . 10 Ram . | . . . . . . . . . . . . . . Kick . | . . . . . . . . . . . . . . Crush 2 | . . . . . . 1 . . . . . . 1 Escape Stasis 4 | . . . . . . 4 . . . . . . . Rewire 11 | . . . . . . . . . . . 11 . . Trap . | . . . . . . . . . . . . . . Miscellaneous . | . . . . . . . . . . . . . . Route ------- -11/Scrapyard -10/Materials (discovered 5 exits: [*Mat x3] / *Min x2) -10/Mines (discovered 3 exits: [*Mat x2] / *Exi) -10/Exiles (discovered 2 exits: *Min x2) -9/Mines -8/Materials (discovered 4 exits: *Fac x2 / *Sto x2) -8/Storage (discovered 2 exits: *Fac / Rec) -7/Factory (discovered 3 exits: *Fac / *Low x2) -7/Lower Caves -7/Lower Caves -7/Data Miner -6/Proximity Caves -6/Factory -5/Factory (discovered 1 exit: [*Fac]) History --------- Turn | Location | Event 1 | -11/Scrapyard | Discovered new exit (range 0) 1 | -11/Scrapyard | Entered Materials 305 | -10/Materials | Build established: Mutant 384 | -10/Materials | Discovered new exit (range 8) 648 | -10/Materials | Discovered new exit (range 10) 1170 | -10/Materials | Discovered new exit (range 15) 1178 | -10/Materials | Central database locked down 1435 | -10/Materials | Repaired Ion Engine 1440 | -10/Materials | Discovered new exit (range 16) 1733 | -10/Materials | Discovered new exit (range 9) 2001 | -10/Materials | Entered Mines 2203 | -10/Mines | Found a damaged Exp. Sensor Array with a note attached 2208 | -10/Mines | Found Prototype Device 2327 | -10/Mines | Found a hidden stash of uninstalled traps 2610 | -10/Mines | Discovered new exit (range 5) 2680 | -10/Mines | Discovered new exit (range 15) 2764 | -10/Mines | Found the Drone Emporium 2840 | -10/Mines | Deemed a non-threat by the Exiles lab entrance 2842 | -10/Mines | Discovered new exit (range 5) 3261 | -10/Mines | Entered Exiles 3290 | -10/Exiles | Discovered new exit (range 15) 3333 | -10/Exiles | Met 8R-AWN 3366 | -10/Exiles | Met EX-HEX 3461 | -10/Exiles | Met EX-DEC 3500 | -10/Exiles | Visited The Gauntlet 3819 | -10/Exiles | Learned location of Zion (-6) 3891 | -10/Exiles | Met EX-BIN 3918 | -10/Exiles | Aligned with FarCom system 3920 | -10/Exiles | Given EX-Vault access code 3999 | -10/Exiles | Opened EX-Vault 4013 | -10/Exiles | Found Cloak of Protection 4028 | -10/Exiles | Build established: Hauler-Mutant 4056 | -10/Exiles | Warned to stay clear of 0b10 Research branches 4178 | -10/Exiles | Discovered new exit (range 11) 4196 | -10/Exiles | Left Exiles lab with Cloak of Protection 4196 | -10/Exiles | Entered Mines 4418 | -9/Mines | Learned 8 Materials zone layouts 4829 | -9/Mines | Discovered new exit (range 5) 5210 | -9/Mines | Entered Materials 5210 | -8/Materials | Evolved 4 slots: Propulsion x1, Utility x2, Weapon x1 5211 | -8/Materials | Identified exit to Storage 5211 | -8/Materials | Identified exit to Factory 5524 | -8/Materials | Build established: Hauler-Skirmisher 5870 | -8/Materials | Identified Exp. Sensor Array 6026 | -8/Materials | Discovered exit to Factory (range 4) 7024 | -8/Materials | Entered Storage 7090 | -8/Storage | Repaired Imp. Terrain Scanner 7391 | -8/Storage | Build established: Hauler-Assassin 7630 | -8/Storage | Repaired Hcp. Storage Unit 7682 | -8/Storage | Repaired Hvy. Ion Engine 7910 | -8/Storage | Build established: Hauler-Skirmisher 8459 | -8/Storage | Found Prototype Launcher 8459 | -8/Storage | Identified Gui. Missile Launcher 9828 | -8/Storage | Discovered exit to Factory (range 13) 9869 | -8/Storage | Identified exit to Recycling 9902 | -8/Storage | Entered Factory 9902 | -7/Factory | Evolved 2 slots: Propulsion x1, Utility x1 11683 | -7/Factory | Repaired Hrd. Medium Armor Plating? 11975 | -7/Factory | Repaired Adv. Treads 12141 | -7/Factory | Fabricated Adv. Treads (x2) 12226 | -7/Factory | Fabricated Adv. Treads (x2) 12309 | -7/Factory | Build established: Hauler-Mutant 13026 | -7/Factory | Build established: Hauler-Skirmisher 13146 | -7/Factory | Discovered new exit (range 16) 13448 | -7/Factory | Identified exit to Lower Caves 13700 | -7/Factory | Repaired Hrd. Medium Armor Plating 14197 | -7/Factory | Entered Lower Caves 14878 | -7/Lower Caves | Discovered new exit (range 10) 14886 | -7/Lower Caves | Attracted the attention of an 0b10 checkpoint 14971 | -7/Lower Caves | Learned location of 1 exit from Factory 15407 | -7/Lower Caves | Entered another Lower Caves area 15449 | -7/Lower Caves | Encountered a Warlord checkpoint 15721 | -7/Lower Caves | Build established: Hauler-Mutant 16383 | -7/Lower Caves | Attacked by a delusional Derelict stockpiling parts 17031 | -7/Lower Caves | Discovered new exit (range 7) 17091 | -7/Lower Caves | Build established: Hauler-Skirmisher 17182 | -7/Lower Caves | Entered Data Miner 17182 | -7/Data Miner | Discovered new exit (range 6) 17209 | -7/Data Miner | Met Data Miner 17247 | -7/Data Miner | Learned location of Section 7 (-2) 17247 | -7/Data Miner | Acquired the access code to Warlord's prototype stash 17276 | -7/Data Miner | Received God Mode back door access code from Data Miner 17318 | -7/Data Miner | Entered Proximity Caves 17333 | -6/Proximity Caves | Learned Factory security intel 17345 | -6/Proximity Caves | Escorted by Enhanced Grunt 17345 | -6/Proximity Caves | Attracted the attention of an 0b10 outpost 17442 | -6/Proximity Caves | Lost 6 parts (1n1u4w) 17512 | -6/Proximity Caves | Spotted B-75 Beast 17530 | -6/Proximity Caves | Core integrity fell below 50% 17586 | -6/Proximity Caves | Lost 4 parts (1p1u2w) 17642 | -6/Proximity Caves | Build established: Hauler-Mutant 17657 | -6/Proximity Caves | Discovered new exit (range 6) 17665 | -6/Proximity Caves | Entered Factory 17665 | -6/Factory | Evolved 2 slots: Utility x1, Weapon x1 17666 | -6/Factory | Identified exit to Factory 18490 | -6/Factory | Build established: Hauler-Skirmisher 19161 | -6/Factory | Garrison activated, responded to threat 20111 | -6/Factory | Entered another Factory area 20111 | -5/Factory | Evolved 2 slots: Power x1, Utility x1 21309 | -5/Factory | Build established: Hauler-Assassin 21370 | -5/Factory | Discovered new exit (range 7) 21905 | -5/Factory | Repaired Exp. Sensor Array? 21954 | -5/Factory | System corruption reached 10% 22249 | -5/Factory | Core integrity fell below 50% 22275 | -5/Factory | Lost 17 parts (2p5n7u3w) 22283 | -5/Factory | Core integrity fell below 20% 22291 | -5/Factory | Destroyed by H-66 Slayer with Heavy Assault Rifle Last Messages --------------- 22231_ Slug penetrates Wall. 22236_ U-05 Engineer lays Concrete. 22236_ P-70 Sage destroyed. 22236_ Slug penetrates Fusion Modulator. 22241_ U-05 Engineer lays Concrete. 22241_ P-70 Sage resets U-05 Engineer, system corruption cleaned. 22243_ System corrupted: Component data lost. 22244_ Penetrated by Slug. 22244_ Power Sword destroyed. 22250_ Penetrated by Slug. 22250_ Slug penetrates U-05 Engineer. 22258_ Slug penetrates Wall. 22260_ P-70 Sage resets U-05 Engineer, system corruption cleaned. 22262_ Slug penetrates Wall. 22266_ 9#VEPF%E&R7QN&HS8QSR 22271_ P-70 Sage resets G-50 Soldier, system corruption cleaned. 22277_ Slug penetrates Wall. 22289_ System corrupted: Heat flow error (+172). 22291_ Penetrated by Slug. Map ----- +----------------------------------------------------+ | ????????+?????#?# ## ? ? ?#??## | | #?? ??????? ????# +???? ???#??# | | ???????? ???? ??# # ??????????? | | #?????????? ???## ############# | | ?##????????????+ # | | ??#?????? ??? ?# # | | ???????"?"?????# # | | ##?????"???????+ + """ | | ?#?????"?"?? ??####/#### """"" | | ????#???????? ?## # """"" | | ?################ # | | ?# ### # """ | | ## #?# # """" | | ?# """" """" ### !# = """"" | | ?# """" """" #?# # | | ?# """" """" ###! ]# | | ## """" """" ################/##### | | ?# """" """" # =%= | | ?# """" """" # | | ?# # !! =% | | ?# # *%| | | ## # [[ | | ?# # ###/############ | | #########;#####h # ? ??## | | #?#??# u upuu # ### "" | | ?##??# @ h # ?Y?# "" | | #????# < # ### "T | | ?????# """ # #?# "" | | #?#??# g""" # """?#?# "" | | ?????##### """ # """"" ### | | ???????### # """???#?# | | ????#???## """ #####?#?#??##### | | ??###???## """ #####??###?????? | | ##???????# """ ###########?#??# | | # ######## # ###??# | | # # """ # """" ##???? | | # ! # """ # """" ##???? | | # # """ # """" #????# | | # # # """" ###??? | | # # + """" #???## | | # # # """" #?#??# | | # " # "" # #??##? | | # " # "" ################ | | # " ! ! + "" # #? | | # " ! # T" # #? | | # " # """ # #? | | # " # ! "" + #? | | # " # # #? | | # " # # #? | | # " ###### ###############? | +----------------------------------------------------+ Best States ------------- Heat Dissipation 71 Coolant Potential 65 Energy Generation 31 Energy Capacity 520 Matter Stores 300 Matter Capacity 300 Sight Range 16 Robot Scan Range 30 Terrain Scan Range 24 Terrain Scan Density 85 Jamming Range 12 Cloak Strength 5 Armor Coverage 675 Resistance: KI 20 Weapon Cycling 20 Evasion (%) 40 Recoil Reduction 4 Energy Filtering 30 Particle Charging 15 Item Schematics ----------------- Hrd. Medium Armor Plating | -8/Materials | Scanalyzed Exp. Sensor Array | -8/Materials | Scanalyzed Adv. Treads | -8/Materials | Scanalyzed Enh. Gauss Cannon | -7/Factory | Hacked Imp. Shield Generator | -7/Factory | Hacked Combat Drone Bay | -7/Data Miner | Free Lgt. Regenerative Plating | -7/Data Miner | Free Exp. Flexi-carbon Leg | -7/Data Miner | Free Exp. Terrain Scan Processor | -7/Data Miner | Free Tactical Coordination Suite | -7/Data Miner | Free Exp. Transmission Jammer | -7/Data Miner | Free Exp. ECM Suite | -7/Data Miner | Free Mni. Smartbomb Launcher | -7/Data Miner | Free Kinetic Spear | -7/Data Miner | Free Robot Schematics ------------------ S-27 Virus | -7/Data Miner | Free G-50 Soldier | -7/Data Miner | Free L-41 Fighter | -7/Data Miner | Free I-36 Angel | -7/Data Miner | Free Fabricated ------------ Adv. Treads | x2 | -7/Factory Adv. Treads | x2 | -7/Factory Alien Tech Used ----------------- None Achievements -------------- None Challenges ------------ None Game ------ Seed StealthModifiedDissipator Manual? 0 Play Time 04:14:13 Cumulative 135.6 hours Start 2021.05.21 @ 14:50:08 End 2021.05.21 @ 22:50:43 Sessions 14 Manual Loads 0 Difficulty Rogue Special Mode None Game No. 81 Rogue 56 Adventurer 25 Explorer 0 Win Type - Total 0 Types 0/0/0/0/0/0/0/0/0 Lore% 45 Gallery% 45 Achievement% 37 Wizard Run 0 Options --------- ASCII 0 Keyboard 1 Movement Vi Keybinds 1 Fullscreen 2 Font 18/X11Bold Map View 76x50 Tactical HUD 1 Map Filters NONE Filters NONE Steam 1 RUN: 8d78c662-e65d-4f66-b415-dfe0c88fcfe7